bitfinex/quotes_SOLUSD_20241031
["timestamp","ask_amount","ask_price","bid_price","bid_amount"]
[1730358823075,10.27977658,174.0,173.95,10.27977658]
[1730358823475,25.84007658,174.01,173.96,10.27977658]
[1730358823785,10.27977658,174.02,173.97,10.27977658]
[1730358824376,10.27977658,174.03,173.98,10.27977658]
[1730358824695,21.4829,174.05,173.93,0.12549]
[1730358824696,10.27977658,174.04,173.99,10.27977658]
[1730358824999,10.27977658,174.04,173.99,16.02707658]
[1730358825376,26.01717658,174.05,174.0,10.27977658]
[1730358825691,26.01717658,174.05,173.99,30.39567658]
[1730358825692,10.27977658,174.04,173.99,30.39567658]
[1730358827002,10.27977658,174.01,173.97,5.748]
[1730358827288,10.27977658,174.0,173.97,5.748]
[1730358827595,10.27977658,174.0,173.95,24.65097658]
[1730358828479,10.27977658,174.0,173.95,30.39967658]
[1730358830406,10.27977658,174.01,173.96,10.27977658]
[1730358831005,10.27977658,174.01,173.97,5.7481]
[1730358831679,10.27977658,174.01,173.97,20.1183]
[1730358831882,15.4011,174.03,173.97,20.1183]
[1730358831883,25.68087658,174.03,173.98,10.27977658]
[1730358832179,16.02587658,174.04,173.99,10.27977658]
[1730358832601,10.27977658,174.03,173.99,10.27977658]
[1730358833110,10.27977658,174.04,173.99,10.27977658]
[1730358833481,10.27977658,174.05,174.0,16.02687658]
[1730358833688,10.27977658,174.05,174.0,30.39467658]
[1730358834505,5.7448,174.07,174.0,20.1149]
[1730358834506,10.27977658,174.04,174.0,20.1149]
[1730358838993,10.27977658,174.03,174.0,20.1149]
[1730358839487,10.27977658,174.03,174.0,14.3678]
[1730358839898,10.27977658,174.04,174.0,14.3678]
[1730358843411,10.27977658,174.03,174.0,14.3678]
[1730358845412,10.27977658,174.04,173.99,10.27977658]
[1730358846501,10.27977658,174.04,174.0,5.7471]
[1730358846992,10.27977658,174.03,173.99,10.27977658]
[1730358847308,10.27977658,174.02,173.98,5.7474]
[1730358847718,10.27977658,174.02,173.98,20.1168]
[1730358848315,10.27977658,174.04,173.99,10.27977658]
[1730358848490,10.27977658,174.04,174.0,20.1149]
[1730358848697,10.27977658,174.03,174.0,14.3678]
[1730358849505,10.27977658,174.03,173.99,5.7474]
[1730358853931,5.7458,174.04,173.99,5.7474]
[1730358853932,10.27977658,174.04,173.99,10.27977658]
[1730358854516,10.27977658,174.05,174.0,10.27977658]
[1730358854721,10.27977658,174.04,173.99,10.27977658]
[1730358854929,10.27977658,174.03,173.99,10.27977658]
[1730358855705,10.27977658,174.03,173.99,5.7473]
[1730358856910,10.27977658,174.02,173.98,20.1169]
[1730358858019,10.27977658,174.04,173.99,10.27977658]
[1730358858221,16.02547658,174.05,173.99,10.27977658]
[1730358858813,10.27977658,174.04,173.99,10.27977658]
[1730358859015,10.27977658,174.05,174.0,10.27977658]
[1730358859719,10.27977658,174.05,174.0,16.02657658]
[1730358861622,10.27977658,174.04,173.99,10.27977658]
[1730358861840,10.27977658,174.05,174.0,10.27977658]
[1730358862128,5.7452,174.06,174.01,10.27977658]
[1730358862129,16.02497658,174.06,174.01,10.27977658]
[1730358862730,16.02497658,174.06,174.01,16.02637658]
[1730358863228,10.27977658,174.03,173.98,10.27977658]
[1730358864423,10.27977658,174.04,173.99,10.27977658]
[1730358865020,10.27977658,174.04,173.97,14.3701]
[1730358865021,10.27977658,174.03,173.98,10.27977658]
[1730358865230,10.27977658,174.01,173.97,14.3701]
[1730358865419,10.27977658,174.02,173.97,24.64987658]
[1730358866441,10.27977658,174.02,173.97,30.39797658]
[1730358866820,10.27977658,174.03,173.99,10.27977658]
[1730358867123,10.27977658,174.04,173.99,10.27977658]
[1730358868245,16.02547658,174.05,174.0,10.27977658]
[1730358868423,10.27977658,174.05,174.0,10.27977658]
[1730358869842,16.02497658,174.06,174.01,10.27977658]
[1730358870029,16.02497658,174.06,173.96,44.027864]
[1730358870030,10.27977658,174.05,174.0,10.27977658]
[1730358870220,16.02497658,174.06,174.01,10.27977658]
[1730358870714,10.27977658,174.05,174.01,5.7466]
[1730358872638,10.27977658,174.06,174.01,16.02637658]
[1730358873141,10.27977658,174.07,174.02,10.27977658]
[1730358874640,16.02457658,174.07,174.02,16.02607658]
[1730358877230,10.27977658,174.05,174.01,14.3669]
[1730358877935,10.27977658,174.06,174.01,24.64667658]
[1730358878731,10.27977658,174.06,174.01,30.39337658]
[1730358881534,16.02457658,174.07,174.02,10.27977658]
[1730358884538,16.02457658,174.07,174.01,20.1135]
[1730358884539,10.27977658,174.06,174.01,24.64667658]
[1730358885941,10.27977658,174.06,174.01,30.39337658]
[1730358886550,16.02457658,174.07,174.02,10.27977658]
[1730358886846,10.27977658,174.06,174.01,24.64667658]
[1730358888354,10.27977658,174.07,174.02,10.27977658]
[1730358888739,0.5823009,174.09,174.01,20.1136]
[1730358888740,10.86207748,174.09,174.04,10.27977658]
[1730358890751,10.86207748,174.09,174.04,16.02517658]
[1730358892140,10.27977658,174.08,174.04,16.02517658]
[1730358896759,16.02437658,174.08,174.04,10.27977658]
[1730358899538,10.27977658,174.05,174.0,10.27977658]
[1730358899737,10.27977658,174.03,173.99,30.27977658]
[1730358900258,10.27977658,174.04,174.0,10.27977658]
[1730358900636,10.27977658,174.05,174.0,10.27977658]
[1730358901043,16.02537658,174.05,174.0,10.27977658]
[1730358901336,10.27977658,174.04,174.0,10.27977658]
[1730358901574,5.7456,174.05,173.98,30.39687658]
[1730358901575,10.27977658,174.03,173.98,30.39687658]
[1730358903651,10.27977658,174.02,173.98,20.1171]
[1730358905555,10.27977658,174.01,173.96,10.27977658]
[1730358905760,10.27977658,174.01,173.97,20.0]
[1730358906674,10.27977658,174.01,173.98,5.7477]
[1730358908763,10.27977658,174.01,173.96,10.27977658]
[1730358908970,10.27977658,174.01,173.97,5.748]
[1730358909175,10.27977658,174.0,173.97,5.748]
[1730358909470,10.27977658,173.99,173.95,14.3719]
[1730358909682,10.27977658,173.99,173.95,20.1206]
[1730358909973,10.27977658,173.98,173.95,20.1206]
[1730358910175,10.27977658,173.98,173.95,14.3719]
[1730358910553,10.27977658,173.99,173.95,14.3719]
[1730358910766,10.27977658,173.98,173.95,14.3719]
[1730358911254,10.27977658,173.98,173.93,10.27977658]
[1730358911460,10.27977658,173.97,173.92,10.27977658]
[1730358911969,10.27977658,173.98,173.93,10.27977658]
[1730358912168,10.27977658,173.98,173.93,16.02887658]
[1730358912353,10.27977658,174.01,173.96,10.27977658]
[1730358913555,10.27977658,174.01,173.96,16.02787658]
[1730358913868,10.27977658,174.01,173.96,30.39897658]
[1730358914271,10.27977658,174.01,173.96,24.65087658]
[1730358914474,10.27977658,173.99,173.95,10.27977658]
[1730358914777,10.27977658,173.98,173.94,5.7488]
[1730358915451,10.27977658,173.98,173.94,20.1215]
[1730358915651,10.27977658,173.97,173.94,14.3727]
[1730358916660,10.27977658,173.97,173.94,20.1218]
[1730358917570,10.27977658,173.97,173.94,14.3727]
[1730358919552,10.27977658,173.97,173.92,10.27977658]
[1730358919776,10.27977658,173.97,173.92,16.02937658]
[1730358919975,14.3661,174.02,173.9,5.9926384]
[1730358919976,10.27977658,173.94,173.9,5.9926384]
[1730358920582,10.27977658,173.93,173.89,5.7504]
[1730358920982,10.27977658,173.92,173.89,20.1273]
[1730358921273,10.27977658,173.91,173.87,5.7513]
[1730358921675,10.27977658,173.92,173.87,30.40957658]
[1730358921898,10.27977658,173.94,173.88,10.27977658]
[1730358923480,10.27977658,173.94,173.89,20.1276]
[1730358923871,10.27977658,173.92,173.89,20.1276]
[1730358924292,10.27977658,173.92,173.89,14.3769]
[1730358926272,10.27977658,173.93,173.89,14.3769]
[1730358926988,10.27977658,173.93,173.89,20.1276]
[1730358927690,10.27977658,173.95,173.9,10.27977658]
[1730358927869,10.27977658,173.95,173.91,10.27977658]
[1730358928072,10.27977658,173.97,173.92,10.27977658]
[1730358928962,10.27977658,173.97,173.93,20.1229]
[1730358934489,10.27977658,173.96,173.93,20.1229]
[1730358934780,10.27977658,173.97,173.93,20.1229]
[1730358935786,10.27977658,173.98,173.93,10.27977658]
[1730358935989,10.27977658,173.99,173.94,10.27977658]
[1730358936589,5.7468,174.01,173.96,10.27977658]
[1730358936590,10.27977658,174.01,173.96,10.27977658]
[1730358936768,10.27977658,174.02,173.97,10.27977658]
[1730358937388,10.27977658,174.01,173.96,10.27977658]
[1730358937786,10.27977658,174.0,173.97,14.3697]
[1730358938968,10.27977658,173.99,173.94,10.27977658]
[1730358939169,10.27977658,173.98,173.94,10.27977658]
[1730358939891,10.27977658,173.99,173.94,10.27977658]
[1730358940712,10.27977658,173.99,173.95,5.7487]
[1730358944192,10.27977658,173.98,173.95,5.7487]
[1730358944701,10.27977658,173.97,173.93,20.1222]
[1730358945204,10.27977658,173.97,173.93,14.3731]
[1730358945402,10.27977658,173.95,173.93,14.3731]
[1730358946799,10.27977658,173.94,173.89,5.9908474]
[1730358947004,10.27977658,173.93,173.89,11.7415474]
[1730358947184,10.27977658,173.93,173.89,5.7507]
[1730358948395,10.27977658,173.94,173.89,30.40737658]
[1730358950999,10.27977658,173.94,173.9,10.27977658]
[1730358951918,10.27977658,173.94,173.89,30.40737658]
[1730358953608,15.7427,173.98,173.89,20.1276]
[1730358953609,10.27977658,173.93,173.89,20.1276]
[1730358955013,10.27977658,173.94,173.89,30.40737658]
[1730358957495,16.02857658,173.95,173.9,10.27977658]
[1730358958019,16.02857658,173.95,173.9,16.02987658]
[1730358959009,10.27977658,173.94,173.89,24.65667658]
[1730358959999,10.27977658,173.93,173.89,14.3769]
[1730358960625,10.27977658,173.93,173.89,20.1276]
[1730358962935,10.27977658,173.94,173.89,20.1276]
[1730358963221,10.27977658,173.94,173.89,30.40737658]
[1730358963420,10.27977658,173.96,173.9,10.27977658]
[1730358963634,10.27977658,173.97,173.92,10.27977658]
[1730358963922,26.02247658,173.98,173.93,10.27977658]
[1730358964098,10.27977658,173.99,173.94,10.27977658]
[1730358964301,10.27977658,174.02,173.97,10.27977658]
[1730358965019,10.27977658,174.02,173.97,16.02757658]
[1730358965529,10.27977658,174.01,173.97,16.02757658]
[1730358966426,41.11910632,174.06,173.97,16.02757658]
[1730358966427,10.27977658,174.02,173.98,10.27977658]
[1730358966620,10.27977658,174.02,173.97,30.39777658]
[1730358967318,10.27977658,174.02,173.98,10.27977658]
[1730358968116,10.27977658,174.02,173.98,16.02717658]
[1730358968319,10.27977658,174.02,173.98,5.7474]
[1730358968527,10.27977658,174.0,173.98,5.7474]
[1730358969031,10.27977658,173.99,173.94,20.0]
[1730358969233,10.27977658,173.98,173.94,20.0]
[1730358969436,10.27977658,173.98,173.93,24.65257658]
[1730358969616,10.27977658,173.99,173.94,10.27977658]
[1730358969808,10.27977658,173.99,173.95,10.27977658]
[1730358970016,10.27977658,173.99,173.96,5.7484]
[1730358971534,10.27977658,173.99,173.95,16.02847658]
[1730358973121,10.27977658,174.01,173.96,10.27977658]
[1730358973943,10.27977658,174.0,173.95,30.40037658]
[1730358974466,10.27977658,174.01,173.96,10.27977658]
[1730358974837,10.27977658,174.02,173.97,10.27977658]
[1730358975554,10.27977658,174.03,173.98,10.27977658]
[1730358976446,10.27977658,174.03,173.98,16.02737658]
[1730358976745,10.27977658,174.02,173.98,20.117]
[1730358977947,10.27977658,174.01,173.98,20.117]
[1730358978187,10.27977658,174.01,173.98,14.3694]
[1730358978334,5.7461,174.03,173.98,14.3694]
[1730358978335,10.27977658,174.0,173.98,14.3694]
[1730358979052,10.27977658,174.0,173.95,10.27977658]
[1730358979233,10.27977658,173.99,173.95,20.1203]
[1730358979550,10.27977658,173.99,173.95,14.3719]
[1730358979739,10.27977658,173.98,173.95,14.3719]
[1730358980725,10.27977658,173.98,173.93,10.27977658]
[1730358980932,10.27977658,173.97,173.92,24.65417658]
[1730358981648,10.27977658,173.94,173.89,16.03027658]
[1730358982033,10.27977658,173.94,173.89,30.40717658]
[1730358982554,10.27977658,173.93,173.89,30.40717658]
[1730358982733,10.27977658,173.93,173.89,20.1274]
[1730358986752,10.27977658,173.95,173.9,10.27977658]
[1730358988053,10.27977658,173.94,173.9,5.7501]
[1730358991464,10.27977658,173.94,173.9,20.1261]
[1730358991762,10.27977658,173.95,173.9,30.40587658]
[1730358993645,10.27977658,173.93,173.9,20.1261]
[1730358994567,10.27977658,173.93,173.86,27.2095327]
[1730358994568,10.27977658,173.93,173.88,10.27977658]
[1730358996772,10.27977658,173.93,173.89,20.1276]
[1730358999361,10.27977658,173.94,173.89,30.40737658]
[1730359002877,10.27977658,173.95,173.9,10.27977658]
[1730359004061,10.27977658,173.95,173.91,5.7501]
[1730359005177,10.27977658,173.97,173.93,10.27977658]
[1730359005367,10.27977658,173.98,173.94,10.27977658]
[1730359006084,10.27977658,173.98,173.95,5.7487]
[1730359007168,10.27977658,173.97,173.95,5.7487]
[1730359008167,10.27977658,173.97,173.94,14.3725]
[1730359008367,10.27977658,173.97,173.94,20.1216]
[1730359010190,10.27977658,173.98,173.94,20.1216]
[1730359010392,10.27977658,173.97,173.94,20.1216]
[1730359010584,10.27977658,173.97,173.94,14.3725]
[1730359010788,10.27977658,173.98,173.94,14.3725]
[1730359011689,10.27977658,173.98,173.94,20.1216]
[1730359012798,21.3051,174.01,173.95,10.27977658]
[1730359012799,10.27977658,174.0,173.95,10.27977658]
[1730359012995,10.27977658,174.02,173.97,10.27977658]
[1730359013198,10.27977658,174.02,173.98,10.27977658]
[1730359014074,10.27977658,174.02,173.98,16.02737658]
[1730359016500,25.89257658,174.05,174.0,10.27977658]
[1730359017195,10.27977658,174.04,174.0,10.27977658]
[1730359017394,10.27977658,174.06,174.01,10.27977658]
[1730359018200,10.27977658,174.06,174.02,10.27977658]
[1730359018506,10.86207748,174.09,174.04,10.27977658]
[1730359019704,10.86207748,174.09,173.99,48.8532]
[1730359019705,10.27977658,174.08,174.03,10.27977658]
[1730359020384,10.86207748,174.09,174.04,10.27977658]
[1730359020895,0.5823009,174.09,174.07,10.27977658]
[1730359021098,0.5823009,174.09,174.08,10.27977658]
[1730359022585,0.5823009,174.09,174.08,16.02417658]
[1730359033394,0.5823009,174.09,174.08,36.02417658]
[1730359034216,0.5823009,174.09,174.08,60.05204058]
[1730359035809,0.5823009,174.09,174.08,60.15204058]
[1730359038203,15.9295,174.19,174.09,44.227864]
[1730359038405,10.27977658,174.22,174.18,10.27977658]
[1730359038604,26.59037658,174.24,174.19,10.27977658]
[1730359038802,16.3106,174.24,174.2,10.27977658]
[1730359039105,10.27977658,174.22,174.18,10.27977658]
[1730359039289,10.27977658,174.23,174.19,10.27977658]
[1730359039491,10.27977658,174.23,174.19,16.02037658]
[1730359039798,26.59037658,174.24,174.2,10.27977658]
[1730359040191,16.3106,174.24,174.21,10.27977658]
[1730359040495,26.59037658,174.24,174.19,30.37247658]
[1730359040686,26.59037658,174.24,174.2,10.27977658]
[1730359040886,16.3106,174.24,174.21,10.27977658]
[1730359041321,16.01867658,174.25,174.21,10.27977658]
[1730359041489,16.01867658,174.25,174.19,20.0927]
[1730359041490,16.01867658,174.25,174.2,10.27977658]
[1730359041693,22.67467748,174.27,174.23,10.27977658]
[1730359042328,16.93647748,174.27,174.23,10.27977658]
[1730359042491,10.86207748,174.27,174.23,10.27977658]
[1730359042817,0.5823009,174.27,174.23,10.27977658]
[1730359043204,0.5823009,174.27,174.24,10.27977658]
[1730359045317,0.5823009,174.27,174.23,16.01917658]
[1730359046296,10.86207748,174.27,174.23,10.27977658]
[1730359048416,10.86207748,174.27,174.22,20.0893]
[1730359048417,10.86207748,174.27,174.22,10.27977658]
[1730359049612,16.60027748,174.27,174.22,16.01957658]
[1730359052417,10.86207748,174.27,174.22,16.01957658]
[1730359052626,0.1,174.15,174.01,6.617]
[1730359052791,10.27977658,174.09,174.03,10.27977658]
[1730359052997,10.27977658,174.09,174.01,6.617]
[1730359053201,5.0532363,174.11,174.01,6.617]
[1730359053419,5.0532363,174.11,174.03,5.979935]
[1730359053597,70.0,174.16,174.03,5.979935]
[1730359053805,10.27977658,174.12,174.06,10.27977658]
[1730359054305,10.27977658,174.09,174.03,16.25971158]
[1730359054506,10.27977658,174.09,173.85,8.75398443]
[1730359054507,23.776884,174.09,173.96,26.7192]
[1730359054826,30.231484,174.09,173.98,10.27977658]
[1730359055027,10.27977658,174.03,173.98,10.27977658]
[1730359055705,10.27977658,174.03,173.99,20.0]
[1730359055907,10.27977658,174.04,173.99,20.0]
[1730359056105,10.27977658,174.06,174.0,10.27977658]
[1730359056511,16.06423566,174.06,174.01,16.06423566]
[1730359056819,16.06423566,174.05,173.99,56.18023566]
[1730359059220,16.06423566,174.03,173.99,40.116]
[1730359060524,16.06423566,174.04,173.99,56.18023566]
[1730359062026,16.06423566,174.03,173.99,40.116]
[1730359063218,16.06423566,174.06,174.01,36.06423566]
[1730359063413,16.1117,174.12,174.01,36.06423566]
[1730359063414,16.06423566,174.07,174.02,16.06423566]
[1730359063731,16.06423566,174.07,174.03,20.0]
[1730359063933,16.06423566,174.07,174.03,36.06423566]
[1730359064543,16.06423566,174.07,174.04,5.7458]
[1730359065612,16.06423566,174.08,174.04,20.1103]
[1730359065818,16.06423566,174.09,174.05,16.06423566]
[1730359066134,16.06423566,174.12,174.07,16.06423566]
[1730359066433,16.06423566,174.13,174.08,16.06423566]
[1730359066633,16.06423566,174.13,174.09,20.0]
[1730359067709,16.06423566,174.13,174.1,5.7438]
[1730359069528,16.06423566,174.14,174.1,20.1033]
[1730359069704,16.06423566,174.16,174.11,16.06423566]
[1730359069903,22.4007,174.2,174.13,16.06423566]
[1730359069904,16.06423566,174.18,174.13,16.06423566]
[1730359070208,16.06423566,174.16,174.12,16.06423566]
[1730359070603,16.06423566,174.16,174.13,20.0]
[1730359071012,16.06423566,174.17,174.13,20.0]
[1730359071233,16.06423566,174.17,174.14,5.7425]
[1730359072933,16.06423566,174.15,174.14,5.7425]
[1730359073107,16.06423566,174.16,174.14,5.7425]
[1730359077037,16.06423566,174.15,174.14,5.7425]
[1730359079734,16.06423566,174.15,174.13,14.3568]
[1730359080048,16.06423566,174.14,174.09,14.3597]
[1730359080343,16.06423566,174.11,174.07,16.06423566]
[1730359080644,16.06423566,174.09,174.06,20.1079]
[1730359081143,16.06423566,174.15,174.06,20.1079]
[1730359081144,16.06423566,174.08,174.06,20.1079]
[1730359081337,16.06423566,174.07,174.06,20.1079]
[1730359081840,16.06423566,174.07,174.06,14.3628]
[1730359082421,16.06423566,174.07,174.04,5.7458]
[1730359083451,16.06423566,174.06,174.04,20.1103]
[1730359083824,16.06423566,174.05,174.04,20.1103]
[1730359084026,16.06423566,174.05,174.04,40.1103]
[1730359084555,16.06423566,174.05,174.04,20.1103]
[1730359086143,16.06423566,174.06,174.04,20.1103]
[1730359087452,16.06423566,174.07,174.04,20.1103]
[1730359089864,16.06423566,174.08,174.04,20.1103]
[1730359090427,16.06423566,174.09,174.05,20.0]
[1730359090727,16.06423566,174.09,174.05,39.29717764]
[1730359090939,16.06423566,174.09,174.05,36.06423566]
[1730359091579,16.06423566,174.09,174.06,20.1079]
[1730359091959,16.06423566,174.08,174.06,20.1079]
[1730359092350,16.06423566,174.07,174.06,20.1079]
[1730359093167,16.06423566,174.07,174.06,14.3628]
[1730359098458,10.27946901,174.07,174.06,14.3628]
[1730359103564,10.27946901,174.07,174.03,9.34258811]
[1730359103770,10.27946901,174.04,174.03,5.98385912]
[1730359104063,10.27946901,174.04,174.03,11.72995912]
[1730359104471,10.27946901,174.04,174.0,3.35872899]
[1730359104670,10.27946901,174.03,174.01,3.35872899]
[1730359104961,10.27946901,174.03,174.02,3.35872899]
[1730359105271,10.27946901,174.03,174.01,3.35872899]
[1730359105453,10.27946901,174.03,173.99,8.25897334]
[1730359105454,10.27946901,174.03,174.02,9.10512899]
[1730359108182,10.27946901,174.03,174.01,3.35872899]
[1730359108367,21.5167,174.04,174.02,3.35872899]
[1730359108572,10.27946901,174.03,174.01,3.32579599]
[1730359108772,10.27946901,174.02,174.0,5.747]
[1730359108970,10.27946901,174.01,174.0,5.747]
[1730359109482,10.27946901,174.01,174.0,8.95635169]
[1730359110383,10.27946901,174.01,174.0,3.21199592]
[1730359111487,10.27946901,174.01,174.0,8.95909592]
[1730359114010,10.27946901,174.02,174.0,8.95909592]
[1730359114196,41.11787604,174.06,174.0,20.1149]
[1730359114197,10.27946901,174.01,174.0,20.1149]
[1730359114366,10.27946901,174.01,174.0,23.32971901]
[1730359114566,10.27946901,174.01,174.0,20.1149]
[1730359114872,10.27946901,174.01,174.0,23.32971901]
[1730359117708,10.27946901,174.01,174.0,20.1149]
[1730359117877,10.27946901,174.01,174.0,23.32943676]
[1730359118403,10.27946901,174.04,174.0,23.32943676]
[1730359118575,10.27946901,174.04,174.01,3.21453676]
[1730359118895,10.27946901,174.03,174.02,3.21453676]
[1730359119598,10.27946901,174.03,174.02,8.96093676]
[1730359120295,10.27946901,174.03,174.02,3.21453676]
[1730359120485,10.27946901,174.03,173.99,8.96193676]
[1730359120685,10.27946901,174.0,173.99,5.7474]
[1730359120887,10.27946901,174.0,173.99,8.9618784]
[1730359125502,10.27946901,174.0,173.99,8.96086838]
[1730359128006,30.9388,174.09,173.99,23.32946838]
[1730359128007,10.27946901,174.03,173.99,23.32946838]
[1730359128209,10.27946901,174.03,174.0,3.21346838]
[1730359128409,10.27946901,174.03,174.01,3.21346838]
[1730359128611,10.27946901,174.04,173.99,30.39546901]
[1730359129126,10.27946901,174.04,174.0,3.21330231]
[1730359129417,10.27946901,174.05,174.01,3.21330231]
[1730359129602,10.27946901,174.06,174.02,3.21330231]
[1730359129802,10.27946901,174.06,173.99,52.92574662]
[1730359129803,10.27946901,174.04,174.03,3.21330231]
[1730359130003,10.27946901,174.04,174.01,3.21314617]
[1730359130199,10.27946901,174.04,174.02,3.21314617]
[1730359130400,10.27946901,174.04,174.0,20.0]
[1730359130623,10.27946901,174.04,174.01,3.21367137]
[1730359130926,10.27946901,174.04,174.02,8.95997137]
[1730359131103,10.27946901,174.04,174.03,3.21367137]
[1730359132705,10.27946901,174.04,174.02,5.7463]
[1730359132909,10.27946901,174.04,174.03,3.21507366]
[1730359135503,10.27946901,174.05,174.03,23.32647366]
[1730359135694,10.27946901,174.04,174.03,20.1114]
[1730359135899,10.27946901,174.04,174.03,23.32919773]
[1730359136609,10.27946901,174.04,174.03,3.21779773]
[1730359136813,10.27946901,174.04,174.03,3.21915282]
[1730359137130,16.02526901,174.04,174.03,3.21915282]
[1730359137329,10.27946901,174.04,174.03,3.21915282]
[1730359137623,10.27946901,174.04,174.03,3.22037582]
[1730359140223,10.27946901,174.04,174.03,3.22349523]
[1730359147164,10.27946901,174.04,174.03,3.18462961]
[1730359153833,10.27946901,174.04,174.0,14.3678]
[1730359154037,10.27946901,174.04,174.01,7.27413471]
[1730359154258,10.27946901,174.04,174.02,3.18621222]
[1730359154549,10.27946901,174.04,174.03,3.18621222]
[1730359155542,10.27946901,174.05,174.03,3.18621222]
[1730359155718,10.27946901,174.05,174.04,3.18621222]
[1730359155923,16.4777,174.09,174.04,3.18621222]
[1730359155924,10.27946901,174.08,174.04,3.18621222]
[1730359156122,10.27946901,174.08,174.05,3.18621222]
[1730359156351,10.27946901,174.08,174.06,3.18621222]
[1730359156525,5.7441,174.09,174.07,3.18621222]
[1730359156721,5.7441,174.09,174.03,20.1112]
[1730359156722,10.27946901,174.08,174.03,20.1112]
[1730359156925,5.7441,174.09,174.04,3.12865143]
[1730359156926,10.27946901,174.05,174.04,3.12865143]
[1730359157523,10.27946901,174.05,174.03,14.3653]
[1730359157722,10.27946901,174.05,174.04,3.12912468]
[1730359157947,10.27946901,174.05,174.04,3.12912259]
[1730359160054,10.27946901,174.06,174.04,3.12912259]
[1730359160349,10.27946901,174.06,174.05,3.12912259]
[1730359161250,10.27946901,174.07,174.05,3.12912259]
[1730359161445,10.27946901,174.07,174.06,3.12912259]
[1730359162247,5.7431,174.12,174.06,3.12912259]
[1730359162248,10.27946901,174.09,174.06,3.12912259]
[1730359162434,10.27946901,174.09,174.07,3.12912259]
[1730359162628,10.27946901,174.09,174.08,3.12912259]
[1730359162938,10.27946901,174.1,174.08,3.12912259]
[1730359163138,10.27946901,174.1,174.09,3.12912259]
[1730359164954,10.27946901,174.11,174.09,3.12912259]
[1730359165130,10.27946901,174.12,174.1,3.12912259]
[1730359165326,10.27946901,174.12,174.09,5.7441]
[1730359165528,10.27946901,174.12,174.1,3.12817046]
[1730359165734,10.27946901,174.12,174.09,5.7441]
[1730359165952,10.27946901,174.13,174.1,3.12734004]
[1730359166167,10.27946901,174.13,174.09,5.7441]
[1730359166354,10.27946901,174.13,174.1,3.12647833]
[1730359166559,10.27946901,174.13,174.09,5.7441]
[1730359166857,10.27946901,174.12,174.1,3.12647882]
[1730359167047,10.27946901,174.12,174.09,5.7441]
[1730359167362,10.27946901,174.13,174.1,3.12587351]
[1730359167662,10.27946901,174.13,174.09,30.38386901]
[1730359167855,10.27946901,174.13,174.1,3.12577528]
[1730359168043,10.27946901,174.13,174.09,30.38386901]
[1730359168248,10.27946901,174.13,174.1,3.12576557]
[1730359168559,10.27946901,174.13,174.09,30.38386901]
[1730359168764,10.27946901,174.13,174.1,3.12497666]
[1730359169059,10.27946901,174.11,174.07,5.7447]
[1730359169270,10.27946901,174.09,174.08,3.12503794]
[1730359173747,10.27946901,174.11,174.08,3.12503794]
[1730359174069,10.27946901,174.11,174.09,3.12503794]
[1730359174255,10.27946901,174.11,174.08,5.7444]
[1730359174451,10.27946901,174.11,174.09,3.12310712]
[1730359174768,10.27946901,174.1,174.08,5.7444]
[1730359174946,10.27946901,174.1,174.09,3.12318423]
[1730359175949,10.27946901,174.1,174.05,10.27946901]
[1730359176154,10.27946901,174.1,174.06,23.23072775]
[1730359176352,10.27946901,174.1,174.07,3.12282775]
[1730359176556,10.27946901,174.11,174.08,3.12282775]
[1730359176755,10.27946901,174.11,174.09,3.12282775]
[1730359176958,10.27946901,174.11,174.06,30.38736901]
[1730359177175,10.27946901,174.11,174.07,8.86699708]
[1730359177365,10.27946901,174.11,174.08,3.12249708]
[1730359177565,10.27946901,174.11,174.09,3.12249708]
[1730359177874,10.27946901,174.11,174.07,5.7445]
[1730359178076,10.27946901,174.11,174.08,3.12221265]
[1730359178258,10.27946901,174.12,174.09,3.12221265]
[1730359178453,10.27946901,174.12,174.08,25.7442]
[1730359178658,10.27946901,174.12,174.09,3.12181731]
[1730359178862,10.27946901,174.12,174.08,25.7442]
[1730359179060,10.27946901,174.12,174.09,3.12181527]
[1730359179259,10.27946901,174.12,174.08,25.7442]
[1730359179463,10.27946901,174.12,174.09,3.12147083]
[1730359179656,10.27946901,174.12,174.08,5.7442]
[1730359179873,10.27946901,174.11,174.09,3.12139281]
[1730359180056,10.27946901,174.11,174.08,5.7442]
[1730359180455,10.27946901,174.11,174.09,3.12132005]
[1730359180654,10.27946901,174.11,174.08,5.7442]
[1730359180947,10.27946901,174.11,174.09,3.1210641]
[1730359181152,10.27946901,174.11,174.08,20.0]
[1730359181676,10.27946901,174.1,174.08,20.0]
[1730359181877,10.27946901,174.1,174.09,3.12073649]
[1730359182557,10.27946901,174.1,174.08,25.7444]
[1730359182959,10.27946901,174.1,174.08,5.7444]
[1730359183261,10.27946901,174.1,174.09,3.12064618]
[1730359184758,16.02326901,174.1,174.06,3.12082326]
[1730359185071,5.7438,174.1,174.07,3.12082326]